Cogmind - Beta 13 @@@ ROGUE MODE // 2024.04.01 @ 22:44:55 Player: SuperDrops Result: Destroyed by G-47 Trooper with Particle Gun Performance ------------- Evolutions (3) 1500 Regions Visited (6) 1200 Robots Destroyed (33) 165 Value Destroyed (775) 775 Prototype IDs (1) 20 Alien Tech Used (0) 0 Bonus (33) 33 TOTAL SCORE: 3693 Bonus ------- High Alert Combat Kills 33 Cogmind --------- Core Integrity 0/700 Matter 207/300 Energy 95/100 System Corruption 21% Temperature Cool (9) Movement Core (50) Location -7/Factory Parts ------- > --- POWER (1) -------- (None) > --- PROPULSION (4) --- (None) > --- UTILITY (4) ------ (None) > --- WEAPON (4) ------- (None) > --- INVENTORY (5) ---- Aluminum Leg Aluminum Leg Wheel Gravmag System Peak State ------------ > --- POWER ------------ Light Deuterium Engine > --- PROPULSION ------- Improved Treads Improved Treads Improved Treads Improved Treads > --- UTILITY ---------- Large Storage Unit > --- WEAPON ----------- Particle Gun Light EM Pulse Cannon Minigun Rocket Launcher > --- INVENTORY -------- Light Ion Engine Light Treads Light Treads Light Treads Light Treads Aluminum Leg Aluminum Leg Wheel Compact Wheel Medium Laser Medium Laser Small Laser Small Laser [Rating: 22] Favorites ----------- Power Light Ion Engine Engine Light Ion Engine Propulsion Improved Treads Treads Improved Treads Wheel Compact Wheel Hover Unit Gravmag System Utility Large Storage Unit Device Gravity Neutralizer Storage Large Storage Unit Processor Signal Interpreter Weapon Small Laser Energy Gun Small Laser Energy Cannon Light EM Pulse Cannon Ballistic Gun Heavy Assault Rifle Launcher Rocket Launcher Build | -11 -10 -9 -8 -7 -7 -7 ------- Run | Yrd Mat Mat Mat Fac Was Fac Slots Evolved 6 | . . 2 2 2 . . Power . | . . . . . . . Propulsion 2 | . . 2 . . . . Utility 2 | . . . . 2 . . Weapon 2 | . . . 2 . . . Parts Attached 43 | 6 1 13 17 . 1 5 Power 4 | 1 . 1 2 . . . Engine 4 | 1 . 1 2 . . . Core . | . . . . . . . Reactor . | . . . . . . . Propulsion 17 | 2 . 4 7 . . 4 Treads 13 | 2 . 4 6 . . 1 Leg . | . . . . . . . Wheel 3 | . . . 1 . . 2 Hover 1 | . . . . . . 1 Flight . | . . . . . . . Utility 5 | 1 1 1 . . 1 1 Device 1 | . . . . . 1 . Storage 3 | 1 1 . . . . 1 Processor 1 | . . 1 . . . . Hackware . | . . . . . . . Protection . | . . . . . . . Artifact . | . . . . . . . Weapon 17 | 2 . 7 8 . . . Energy Gun 10 | 2 . 2 6 . . . Energy Cannon 3 | . . 2 1 . . . Ballistic Gun 3 | . . 2 1 . . . Ballistic Cannon . | . . . . . . . Launcher 1 | . . 1 . . . . Special Weapon . | . . . . . . . Impact Weapon . | . . . . . . . Slashing Weapon . | . . . . . . . Piercing Weapon . | . . . . . . . Special Melee Weapon . | . . . . . . . Unidentified Prototypes 1 | . . . . . 1 . Parts Lost 20 | . . 3 11 . 5 1 Power 3 | . . 1 1 . 1 . Propulsion 8 | . . . 4 . 3 1 Utility 1 | . . 1 . . . . Weapon 8 | . . 1 6 . 1 . Highest Loss Streak 10 | . . 2 10 . 3 1 To Critical Strikes . | . . . . . . . Average Slot Usage (%) 71 | . 85 83 79 76 56 11 Engine 8 | . 14 6 8 7 5 . Treads 29 | . 28 44 32 30 22 3 Storage 9 | . 14 11 9 7 5 3 Energy Gun 15 | . 28 5 14 30 20 . Energy Cannon 2 | . . 4 6 . . . Ballistic Gun 2 | . . 8 2 . . . Launcher 1 | . . 1 6 . . . Naked Turns 66 | . . . . . 36 30 Heaviest Build 80 | 11 26 30 39 30 30 80 Greatest Support 92 | 40 40 92 92 80 80 26 Greatest Overweight (x) 3 | . . . 1 . . 3 Average Overweight (x) . | . . . . . . . Largest Inventory Capacity 25 | 8 15 15 15 15 15 25 Average Capacity 14 | 7 14 15 15 15 13 15 Most Carried 15 | 6 15 15 14 5 6 5 Average Carried 9 | 3 13 13 10 5 5 3 Final Capacity 15 | 8 15 15 15 15 5 5 Final Carried 15 | 6 15 13 5 5 5 4 Class Distribution -------------------- 67% | Mutant 32% | Gunner Dominant Class ---------------- Mutant | -10/Materials Mutant | -9/Materials Gunner | -8/Materials Gunner | -7/Factory Gunner | -7/Waste Mutant | -7/Factory Resources | -11 -10 -9 -8 -7 -7 -7 ----------- Run | Yrd Mat Mat Mat Fac Was Fac Matter Collected 932 | 230 40 222 440 . . . Remotely . | . . . . . . . Salvage Created 1071 | . 101 210 760 . . . Parts 68 | . 2 21 45 . . . Haulers Intercepted 1 | . . . 1 . . . Recyclers Shooed 1 | . . . 1 . . . Parts Field Recycled . | . . . . . . . Retrieved Matter . | . . . . . . . Parts Self-Destructed . | . . . . . . . Prevented . | . . . . . . . Kills | -11 -10 -9 -8 -7 -7 -7 ------- Run | Yrd Mat Mat Mat Fac Was Fac Combat Hostiles Destroyed 21 | . 2 9 10 . . . Guns 13 | . 2 8 3 . . . Cannons 3 | . . 1 2 . . . AOE 5 | . . . 5 . . . Classes Destroyed 7 | . 1 3 3 . . . Worker 2 | . . . 2 . . . Hauler 1 | . . . 1 . . . Recycler 3 | . . . 3 . . . Watcher 6 | . . 1 5 . . . Swarmer 10 | . . 7 3 . . . Grunt 5 | . 2 . 3 . . . Sentry 6 | . . 2 4 . . . Best Kill Streak 6 | . 1 4 6 . . . Combat Bots Only 4 | . 1 4 4 . . . Max Kills in Single Turn 3 | . 1 1 3 . . . Gunslinging . | . . . . . . . Exploded 2 | . . . 2 . . . Melee . | . . . . . . . Uniques/NPCs Destroyed . | . . . . . . . Combat | -11 -10 -9 -8 -7 -7 -7 -------- Run | Yrd Mat Mat Mat Fac Was Fac Hostile Shots Fired 243 | . 10 108 62 . 7 56 Missed 60 | . 3 29 13 . . 15 Damage Taken 2585 | . 92 707 841 . 308 637 Core 1010 | . 15 117 168 . 212 498 Absorbed by Shields . | . . . . . . . Core Remaining (%) 83 | 100 94 70 69 . . . Volleys Fired 96 | . 7 46 36 . 7 . Largest 4 | . 2 2 4 . 4 . Hottest 195 | . 90 79 195 . 195 . Shots Fired 182 | . 14 53 90 . 25 . Gun 137 | . 14 46 52 . 25 . Cannon 30 | . . 7 23 . . . Launcher 15 | . . . 15 . . . Special . | . . . . . . . Kinetic 62 | . . 46 16 . . . Thermal 75 | . 14 . 36 . 25 . Explosive 15 | . . . 15 . . . Electromagnetic 30 | . . 7 23 . . . Robot Hit Streak 9 | . 6 6 9 . 8 . Robot Miss Streak 5 | . 2 5 4 . 3 . Penetration Max . | . . . . . . . Secondary Targets . | . . . . . . . Shots Hit Robots 97 | . 9 35 42 . 11 . Core Hits 55 | . 5 12 35 . 2 1 Critical Kills . | . . . . . . . Critical Parts Destroyed . | . . . . . . . Critical Strikes 1 | . . . . . 1 . Burn 1 | . . . . . 1 . Melee Attacks . | . . . . . . . Impact . | . . . . . . . Slashing . | . . . . . . . Piercing . | . . . . . . . Sneak Attacks . | . . . . . . . Combat Hostiles . | . . . . . . . Follow-up Attacks . | . . . . . . . Damage Inflicted 2498 | . 109 674 1457 . 248 10 Guns 1227 | . 109 492 378 . 248 . Cannons 499 | . . 153 346 . . . Explosions 762 | . . 29 733 . . . Melee . | . . . . . . . Ramming 10 | . . . . . . 10 Kinetic 599 | . . 492 107 . . . Thermal 657 | . 109 29 271 . 248 . Explosive 733 | . . . 733 . . . Electromagnetic 499 | . . 153 346 . . . Impact . | . . . . . . . Slashing . | . . . . . . . Piercing . | . . . . . . . Highest Corruption 21 | . . . . . 21 21 Average Corruption 15 | . . . . . 9 21 Corruption Purged . | . . . . . . . Corruption Blocked . | . . . . . . . Effects 19 | . . . . . 10 9 Message Errors 8 | . . . . . 6 2 Matter Fused 2 | . . . . . 1 1 Heat Flow Errors 2 | . . . . . 1 1 Energy Discharges 2 | . . . . . 1 1 Data Loss (minor) 2 | . . . . . . 2 Data Loss (major) 2 | . . . . . . 2 Alerts 1 | . . . . . 1 . Overload Shots . | . . . . . . . Overflow Damage 54 | . . 8 46 . . . Projectiles 38 | . . . 38 . . . Explosions 16 | . . 8 8 . . . Melee . | . . . . . . . Knockbacks . | . . . . . . . Impact . | . . . . . . . Kinetic . | . . . . . . . Secondary . | . . . . . . . Self-Inflicted Damage 72 | . . 36 35 . . 1 Shots 3 | . . 1 2 . . . Rammed 6 | . . . . . . 6 Targets Rammed 6 | . . . . . . 6 Kicked . | . . . . . . . Crushed . | . . . . . . . Highest Temperature 660 | . 114 27 660 . 374 232 Average Temperature 139 | . 55 10 165 . 156 93 Received Heat Transfer 888 | . 51 18 396 . . 423 Effects 24 | . . . 24 . . . Shutdowns 2 | . . . 2 . . . Energy Bleed 4 | . . . 4 . . . Matter Decay 2 | . . . 2 . . . Short Circuit 2 | . . . 2 . . . Damage (minor) 1 | . . . 1 . . . Damage (major) 12 | . . . 12 . . . Damage (core) 1 | . . . 1 . . . Siege Activations . | . . . . . . . Robots Corrupted . | . . . . . . . Combat Hostiles . | . . . . . . . Parts Fried 1 | . . . 1 . . . Impact Corruptions . | . . . . . . . Robots Melted . | . . . . . . . Combat Hostiles . | . . . . . . . Parts Melted 7 | . 3 1 3 . . . Heat Transferred 1696 | . 285 50 680 . 681 . Parts Sabotaged . | . . . . . . . Parts Stolen . | . . . . . . . Parts Stripped . | . . . . . . . Power Chain Reactions 1 | . . 1 . . . . Alert | -11 -10 -9 -8 -7 -7 -7 ------- Run | Yrd Mat Mat Mat Fac Was Fac Peak Influence 498 | . 65 175 498 140 49 15 Initial 140 | . . . 31 140 49 . Average 91 | . 41 54 281 140 28 10 Maximum Alert Level 2 | . . . 2 . . . Low Security (%) 87 | 100 100 100 38 100 100 100 Level 1 4 | . . . 23 . . . Level 2 7 | . . . 37 . . . Level 3 . | . . . . . . . Level 4 . | . . . . . . . Level 5 . | . . . . . . . High Security . | . . . . . . . Max Security . | . . . . . . . Squads Dispatched 4 | . 1 . 2 . . 1 Investigation . | . . . . . . . Extermination . | . . . . . . . Reinforcement 4 | . 1 . 2 . . 1 Assault . | . . . . . . . Garrison . | . . . . . . . Intercept . | . . . . . . . Searches Triggered . | . . . . . . . Construction Impeded 1 | . . . 1 . . . Haulers Reinforced . | . . . . . . . Active Scanning Responses . | . . . . . . . Cargo Convoy Interrupts . | . . . . . . . Stealth | -11 -10 -9 -8 -7 -7 -7 --------- Run | Yrd Mat Mat Mat Fac Was Fac Distress Signals 2 | . . 1 1 . . . Communications Jammed . | . . . . . . . Distress Signals . | . . . . . . . Times Spotted 47 | . 4 17 17 . 5 4 Peak Tracking Total 6 | . 2 4 4 . 6 3 Tactical Retreats 2 | . 1 1 . . . . Traps | -11 -10 -9 -8 -7 -7 -7 ------- Run | Yrd Mat Mat Mat Fac Was Fac Traps Triggered 1 | . . . . 1 . . Indirectly . | . . . . . . . Trap Hack Attempts . | . . . . . . . Triggered . | . . . . . . . Disarmed . | . . . . . . . Reprogrammed . | . . . . . . . Reused . | . . . . . . . Traps Extracted . | . . . . . . . Installed . | . . . . . . . Triggered . | . . . . . . . Machines | -11 -10 -9 -8 -7 -7 -7 ---------- Run | Yrd Mat Mat Mat Fac Was Fac Machines Disabled 2 | . . . 2 . . . Max in Single Turn 2 | . . . 2 . . . Machines Repaired . | . . . . . . . Machines Dismantled . | . . . . . . . Machines Sabotaged . | . . . . . . . Overloaded Fab Kills . | . . . . . . . Hacking | -11 -10 -9 -8 -7 -7 -7 --------- Run | Yrd Mat Mat Mat Fac Was Fac Machines Accessed . | . . . . . . . Terminals . | . . . . . . . Fabricators . | . . . . . . . Repair Stations . | . . . . . . . Recycling Units . | . . . . . . . Scanalyzers . | . . . . . . . Garrison Access . | . . . . . . . Total Hacks . | . . . . . . . Successful . | . . . . . . . Failed . | . . . . . . . Catastrophic . | . . . . . . . Database Lockouts . | . . . . . . . Manual . | . . . . . . . Terminals . | . . . . . . . Fabricators . | . . . . . . . Repair Stations . | . . . . . . . Recycling Units . | . . . . . . . Scanalyzers . | . . . . . . . Garrison Access . | . . . . . . . Terminal Hacks . | . . . . . . . Fabricator Hacks . | . . . . . . . Repair Station Hacks . | . . . . . . . Recycling Unit Hacks . | . . . . . . . Scanalyzer . | . . . . . . . Garrison Access Hacks . | . . . . . . . Unauthorized Hacks . | . . . . . . . Terminals . | . . . . . . . Fabricators . | . . . . . . . Repair Stations . | . . . . . . . Recycling Units . | . . . . . . . Scanalyzers . | . . . . . . . Garrison Access . | . . . . . . . Data Cores Recovered . | . . . . . . . Used . | . . . . . . . Hacking Detections . | . . . . . . . Full Trace Events . | . . . . . . . Feedback Events . | . . . . . . . Feedback Blocked . | . . . . . . . Robot Schematics Acquired . | . . . . . . . Robots Built . | . . . . . . . Authchips . | . . . . . . . Time . | . . . . . . . Total Robot Build Rating . | . . . . . . . Part Schematics Acquired . | . . . . . . . Parts Built . | . . . . . . . Authchips . | . . . . . . . Time . | . . . . . . . Total Part Build Rating . | . . . . . . . Parts Repaired . | . . . . . . . Time . | . . . . . . . Parts Recycled . | . . . . . . . Recycled Matter . | . . . . . . . Retrieved Matter . | . . . . . . . Retrieved Components . | . . . . . . . Parts Scanalyzed . | . . . . . . . Part Schematics Acquired . | . . . . . . . Parts Damaged . | . . . . . . . Bothacking | -11 -10 -9 -8 -7 -7 -7 ------------ Run | Yrd Mat Mat Mat Fac Was Fac Used RIF Installer . | . . . . . . . Robots Hacked . | . . . . . . . Non-combat . | . . . . . . . Combat . | . . . . . . . Robot Hacks Applied . | . . . . . . . Relay Couplers Released . | . . . . . . . Fabnet Peak Effective % . | . . . . . . . Robots Rewired . | . . . . . . . Allies Hacked . | . . . . . . . Hacks Repelled . | . . . . . . . Allies | -11 -10 -9 -8 -7 -7 -7 -------- Run | Yrd Mat Mat Mat Fac Was Fac Total Allies 1 | . . . . . 1 . Largest Group 1 | . . . . . 1 . Highest-Rated Group 31 | . . . . . 31 . Highest-Rated Ally 31 | . . . . . 31 . Total Orders . | . . . . . . . Ally Attacks 12 | . . . . . 12 . Total Damage 251 | . . . . . 251 . Kills . | . . . . . . . Allies Corrupted . | . . . . . . . Allies Melted . | . . . . . . . Intel | -11 -10 -9 -8 -7 -7 -7 ------- Run | Yrd Mat Mat Mat Fac Was Fac Robot Analysis Total . | . . . . . . . Derelict Logs Recovered . | . . . . . . . Drone Launches . | . . . . . . . Drone Recoveries . | . . . . . . . Exploration | -11 -10 -9 -8 -7 -7 -7 ------------- Run | Yrd Mat Mat Mat Fac Was Fac Turns Passed 2198 | 139 522 502 447 124 236 228 Spaces Moved 1110 | 79 180 239 195 78 182 157 Core 133 | 4 . . . . 73 56 Treads 897 | 75 180 239 195 78 109 21 Legs . | . . . . . . . Wheels 60 | . . . . . . 60 Hover 20 | . . . . . . 20 Flight . | . . . . . . . Fastest Speed 50 | 50 160 160 160 160 50 50 Average Speed 146 | 154 160 160 164 160 115 113 Slowest Speed 400 | 160 160 160 240 160 160 400 Overloaded Moves . | . . . . . . . Propulsion Burnouts . | . . . . . . . Robots Hopped . | . . . . . . . Cave-ins Triggered . | . . . . . . . Exploration Rate (%) 26 | 5 36 20 28 3 92 4 Regions Visited 6 Branch Regions . Pre-discovered Areas . | . . . . . . . Known Exits Taken . | . . . . . . . Unknown Exits Taken 4 | 1 1 1 1 . . . Scrap Searched . | . . . . . . . Spaces Dug . | . . . . . . . Terrain Destroyed 132 | . . 3 129 . . . Melee . | . . . . . . . Projectile . | . . . . . . . AOE 132 | . . 3 129 . . . Terrain Rammed . | . . . . . . . Walls Destroyed . | . . . . . . . Machines Disabled . | . . . . . . . Actions | -11 -10 -9 -8 -7 -7 -7 --------- Run | Yrd Mat Mat Mat Fac Was Fac Total 1497 | 96 400 303 252 78 190 178 Wait 207 | . 204 . . . . 3 Move 1105 | 78 179 238 194 78 181 157 Hop . | . . . . . . . Pick Up 33 | 12 9 4 5 . 1 2 Fast Attach 1 | . . 1 . . . . Attach 30 | 6 . 5 13 . 1 5 Detach 3 | . . . . . . 3 Swap 12 | . 1 7 4 . . . Drop 4 | . . 2 . . . 2 Fire 96 | . 7 46 36 . 7 . Melee . | . . . . . . . Ram 4 | . . . . . . 4 Kick . | . . . . . . . Crush 2 | . . . . . . 2 Escape Stasis . | . . . . . . . Rewire . | . . . . . . . Trap . | . . . . . . . Miscellaneous . | . . . . . . . Route ------- -11/Scrapyard -10/Materials -9/Materials -8/Materials -7/Factory -7/Waste -7/Factory History --------- Turn | Location | Event 3 | -11/Scrapyard | Discovered new exit (range 15) 140 | -11/Scrapyard | Entered Materials 310 | -10/Materials | Build established: Mutant 645 | -10/Materials | Discovered new exit (range 11) 662 | -10/Materials | Entered another Materials area 662 | -9/Materials | Evolved 2 slots: Propulsion x2 1104 | -9/Materials | Discovered new exit (range 8) 1164 | -9/Materials | Entered another Materials area 1164 | -8/Materials | Evolved 2 slots: Weapon x2 1469 | -8/Materials | Build established: Gunner 1536 | -8/Materials | Lost 10 parts (1p4n5w) 1578 | -8/Materials | Discovered new exit (range 15) 1611 | -8/Materials | Entered Factory 1611 | -7/Factory | Evolved 2 slots: Utility x2 1735 | -7/Factory | Sucked down chute 1735 | -7/Factory | Entered Waste 1736 | -7/Waste | Met a frightened Derelict 1750 | -7/Waste | EMP discharged 1801 | -7/Waste | Spotted C-40 Crusher 1809 | -7/Waste | Spotted C-40 Crusher 1850 | -7/Waste | EMP discharged 1850 | -7/Waste | System corruption reached 10% 1871 | -7/Waste | Spotted C-40 Crusher 1885 | -7/Waste | Spotted C-40 Crusher 1895 | -7/Waste | Crushed by Compactor (1 part destroyed, 1 dropped) 1903 | -7/Waste | Crushed by Compactor (1 part destroyed, 2 dropped) 1910 | -7/Waste | Spotted C-40 Crusher 1934 | -7/Waste | Lost 3 parts (2n1w) 1935 | -7/Waste | Crushed by Compactor (1 part destroyed, 2 dropped) 1935 | -7/Waste | Crushed by Compactor (1 part destroyed, 1 dropped) 1940 | -7/Waste | Spotted C-40 Crusher 1950 | -7/Waste | EMP discharged 1966 | -7/Waste | Discovered new exit (range 10) 1971 | -7/Waste | Entered Factory 2178 | -7/Factory | Core integrity fell below 50% 2191 | -7/Factory | Core integrity fell below 20% 2194 | -7/Factory | Build established: Mutant 2199 | -7/Factory | Destroyed by G-47 Trooper with Particle Gun Last Messages --------------- ALERT: Hostiles spotted, dispatching reinforcements to Terminal F005. Acquired Gravmag System. UR6WCRJQ5JFIKDSQW3JN>1JD&OFSKOLTO3 Dropped Com. Wheel. Acquired Huge Storage Unit. System corrupted: Component data lost. System corrupted: Energy discharge (-33). System corrupted: Heat flow error (+265). Critical hit (Burn: +37). Slammed into G-47 Trooper. Lgt. Treads destroyed. Slammed into G-47 Trooper. System corrupted: Substantial component data lost. Critical hit (Burn: +37). Slammed into G-47 Trooper. System corrupted: Substantial component data lost. Dropped Huge Storage Unit. Map ----- +----------------------------------------------------+ | ?????????????????????????????????????????????????? | | ?????????????????????????????????????????????????? | | ?????????????????????????????????????????????????? | | ?????????????????????????????????????????????????? | | ?????????????????????????????????????????????????? | | ?????????????????????????????????????????????????? | | ?????????????????????????????????????????????????? | | ?????????????????????????????????????????????????? | | ?????????????????????????????????????????????????? | | ?????????????????????????????????????????????????? | | ???? ????????????????????????????????????????????? | | ???? ???????????????????????????????????????????? | | ???? ???????????????????????????????????????????? | | ####+########?????????###????????????????????????? | | ? ? ????????????????????????? | | ?? #? ????????????????????????? | | ?? #? ????????????????????????? | | ??? #? ????????????????????????? | | ????? #? "???????????????????????? | | ## ######### #? "???????????????????????? | | # # # ###+#####???????????????????? | | # # # ????????????????????? | | # # """ # g#????????????????????? | | # # """ # #????????????????????? | | + + """ # o g #????????????????????? | | # # # g@ #????????????????????? | | # # = # ####/##############?????????? | | # #"" # # #?????????? | | # #"T # # #?????????? | | ## #"" # + #?????????? | | ?# # + # """ """ """ """ #?????????? | | ?# ######### # """ """ """ """???????????? | | ?# #???????# # """ """ """ "?????????????? | | ?# #???????# # ??????????????? | | ## ######### ##############??????????????? | | #???????????????????????????? | | #???????????????????????????? | | #???????????????????????????? | | #???????????????????????????? | | #???????????????????????????? | | ####+########### #???????????????????????????? | | #???# #???????????????????????????? | | """" """ #???# ???????????????????????????? | | """" """ #???# ???????????????????????????? | | """" """ #???? ???????????????????????????? | | """" #???? ?????????????????????????????? | | """" #?????????????????????????????????????? | | """" #?????????????????????????????????????? | | #?????????????????????????????????????? | | #?????????????????????????????????????? | +----------------------------------------------------+ Best States ------------- Heat Dissipation 34 Energy Generation 14 Energy Capacity 140 Matter Stores 300 Matter Capacity 300 Sight Range 16 Terrain Scan Density 10 Evasion (%) 53 Recoil Reduction 4 Item Schematics ----------------- None Robot Schematics ------------------ None Fabricated ------------ Nothing Alien Tech Used ----------------- None Achievements -------------- None Challenges ------------ None Game ------ Seed FlyingSurgeFlamer Manual? 0 Play Time 00:21:43 Cumulative 8.0 hours Start 2024.04.01 @ 22:25:13 End 2024.04.01 @ 22:44:55 Sessions 1 Manual Loads 0 Difficulty Rogue Special Mode None Game No. 27 Rogue 27 Adventurer 0 Explorer 0 Win Type - Total 0 Types 0/0/0/0/0/0/0/0/0 Lore% 13 Gallery% 10 Achievement% 9 Wizard Run 0 Options --------- Layout 1 ASCII 0 Keyboard 0 Movement Mouse Keybinds 0 Fullscreen 2 Font 24/Proggy Map View 50x35 Zoom Use 0% Tactical HUD 0 Map Filters NONE Filters NONE Steam 1 RUN: 1c5a3a92-c686-4423-8800-33a14d2e1b85